bitfinex-derivatives/quotes_SOLF0:USTF0_20241203
["timestamp","ask_amount","ask_price","bid_price","bid_amount"]
[1733237320378,34.03693876,221.87,221.65,2.7374]
[1733237320573,34.03693876,221.83,221.65,2.7374]
[1733237320781,34.03693876,221.79,221.65,2.7374]
[1733237321176,4.47375582,221.82,221.77,2.2549]
[1733237321480,34.03693876,221.79,221.65,2.7374]
[1733237321778,2.2556,221.7,221.65,2.2561]
[1733237321976,34.03693876,221.71,221.56,8.213]
[1733237323073,34.03693876,221.67,221.54,5.64]
[1733237323673,13.57,221.83,221.65,34.03693876]
[1733237323875,34.03693876,221.79,221.66,13.7027]
[1733237324081,2.7042,221.96,221.66,10.9457]
[1733237324286,34.03693876,221.86,221.66,10.9457]
[1733237324480,36.33088847,221.86,221.66,10.9457]
[1733237324680,36.33088847,221.86,221.76,2.255]
[1733237324878,36.33088847,221.86,221.69,34.03693876]
[1733237325081,34.03693876,221.9,221.69,34.03693876]
[1733237325280,34.03693876,221.9,221.58,4.5136]
[1733237325476,34.03693876,221.82,221.63,34.03693876]
[1733237325683,2.2551,221.75,221.68,2.2557]
[1733237325881,34.03693876,221.78,221.59,8.2407]
[1733237326080,34.03693876,221.78,221.59,5.64]
[1733237326280,34.03693876,221.74,221.59,5.64]
[1733237326480,34.03693876,221.74,221.51,5.64]
[1733237326782,34.03693876,221.7,221.5,34.03693876]
[1733237327085,34.03693876,221.66,221.46,34.03693876]
[1733237327279,2.2564,221.62,221.51,2.2575]
[1733237327578,2.7711,221.65,221.46,34.03693876]
[1733237327779,2.7711,221.65,221.56,2.257]
[1733237327984,2.7711,221.65,221.46,34.03693876]
[1733237328187,2.7711,221.65,221.47,5.64]
[1733237328389,2.2563,221.64,221.47,5.64]
[1733237328787,34.03693876,221.7,221.5,34.03693876]
[1733237329482,34.03693876,221.66,221.47,5.64]
[1733237329681,34.03693876,221.62,221.47,5.64]
[1733237329884,2.257,221.56,221.49,2.2577]
[1733237330181,2.257,221.56,221.44,2.6007]
[1733237330182,2.6687,221.61,221.44,2.6007]
[1733237330383,2.6687,221.61,221.48,2.2577]
[1733237330384,2.2572,221.55,221.48,2.2577]
[1733237330582,34.03693876,221.58,221.48,2.2577]
[1733237330781,34.03693876,221.58,221.43,5.64]
[1733237330988,34.03693876,221.6,221.43,5.64]
[1733237331182,34.03693876,221.56,221.36,13.9386]
[1733237331485,2.258,221.47,221.36,2.7662]
[1733237331681,34.03693876,221.52,221.36,2.7662]
[1733237332088,2.2577,221.5,221.36,2.7662]
[1733237332385,34.03693876,221.52,221.36,2.7662]
[1733237332581,34.03693876,221.52,221.31,34.03693876]
[1733237332778,34.03693876,221.48,221.31,34.03693876]
[1733237332975,34.03693876,221.48,221.3,5.64]
[1733237333180,2.2587,221.4,221.3,5.64]
[1733237333384,34.03693876,221.4,221.24,2.7662]
[1733237333581,34.03693876,221.4,221.25,2.2601]
[1733237333788,34.03693876,221.4,221.23,5.64]
[1733237333983,2.28652442,221.42,221.23,5.64]
[1733237334187,34.03693876,221.4,221.23,5.64]
[1733237335086,34.03693876,221.36,221.23,5.64]
[1733237335388,34.03693876,221.32,221.13,39.67693876]
[1733237335780,2.26,221.27,221.17,2.2609]
[1733237336083,34.03693876,221.28,220.9,2.24920725]
[1733237336284,34.03693876,221.28,221.08,34.03693876]
[1733237336483,2.6548,221.31,221.12,34.03693876]
[1733237336884,2.6548,221.31,221.16,34.03693876]
[1733237337490,5.64,221.37,221.2,34.03693876]
[1733237337990,2.2594,221.33,221.25,2.2601]
[1733237338187,2.6548,221.42,221.24,34.03693876]
[1733237338391,2.2589,221.38,221.28,2.2598]
[1733237338583,2.2589,221.38,221.25,5.64]
[1733237338784,2.6548,221.42,221.21,2.7771]
[1733237338785,34.03693876,221.4,221.21,2.7771]
[1733237339382,2.6548,221.42,221.24,34.03693876]
[1733237339990,2.6548,221.42,221.21,2.7771]
[1733237340485,34.03693876,221.37,221.21,2.7771]
[1733237340786,2.2591,221.36,221.26,2.26]
[1733237340985,2.2591,221.36,221.21,2.7771]
[1733237340986,2.6548,221.42,221.21,2.7771]
[1733237341191,2.6548,221.42,221.24,34.03693876]
[1733237341391,2.2589,221.38,221.3,2.2596]
[1733237341593,2.6548,221.42,221.24,34.03693876]
[1733237341989,2.6548,221.42,221.34,2.2592]
[1733237342191,34.03693876,221.47,221.28,39.67693876]
[1733237342491,2.2579,221.48,221.4,2.2586]
[1733237342686,2.7663,221.5,221.32,34.03693876]
[1733237342886,4.98321697,221.5,221.29,5.4677]
[1733237343191,2.7663,221.5,221.29,5.4677]
[1733237343388,2.7663,221.5,221.32,34.03693876]
[1733237343584,2.2579,221.48,221.4,2.2586]
[1733237343788,5.0726281,221.5,221.28,39.67693876]
[1733237343988,2.7663,221.5,221.28,39.67693876]
[1733237344684,2.7663,221.5,221.32,34.03693876]
[1733237344887,34.03693876,221.56,221.37,34.03693876]
[1733237345084,34.03693876,221.56,221.38,5.64]
[1733237346292,34.03693876,221.52,221.38,5.64]
[1733237346896,34.03693876,221.56,221.38,5.64]
[1733237347290,34.03693876,221.56,221.43,2.2583]
[1733237347591,34.03693876,221.52,221.38,5.64]
[1733237347892,2.2577,221.5,221.42,2.2584]
[1733237348086,34.03693876,221.52,221.42,2.2584]
[1733237348293,34.03693876,221.56,221.38,5.64]
[1733237348495,2.6601,221.57,221.4,34.03693876]
[1733237348698,2.6601,221.57,221.39,8.13]
[1733237348699,34.03693876,221.56,221.39,8.13]
[1733237349089,2.2575,221.51,221.44,2.2582]
[1733237349490,2.2576,221.5,221.39,8.13]
[1733237349691,34.03693876,221.48,221.29,6.62]
[1733237349998,2.2593,221.34,221.22,5.3996]
[1733237350298,34.03693876,221.36,221.19,2.6044]
[1733237350493,34.03693876,221.32,221.19,2.6044]
[1733237350802,34.03693876,221.36,221.19,2.6044]
[1733237351094,2.2598,221.3,221.19,2.6044]
[1733237351298,34.03693876,221.36,221.19,2.6044]
[1733237351492,34.03693876,221.36,221.12,5.62]
[1733237351695,34.03693876,221.36,221.18,2.2608]
[1733237351696,2.2602,221.25,221.18,2.2608]
[1733237352000,34.03693876,221.32,221.12,5.62]
[1733237352393,34.03693876,221.28,221.12,5.62]
[1733237352792,34.03693876,221.32,221.12,5.62]
[1733237353000,2.28111821,221.38,221.18,34.03693876]
[1733237353198,34.03693876,221.49,221.26,34.03693876]
[1733237353403,2.2582,221.45,221.35,2.2591]
[1733237353697,34.03693876,221.49,221.27,8.4453]
[1733237354097,2.7095,221.53,221.3,34.03693876]
[1733237354304,2.7095,221.53,221.27,11.2351]
[1733237354305,2.7095,221.53,221.34,34.03693876]
[1733237354698,2.7095,221.53,221.3,34.03693876]
[1733237354899,34.03693876,221.49,221.3,34.03693876]
[1733237355194,34.03693876,221.49,221.28,3.5764]
[1733237355195,36.74643876,221.53,221.34,34.03693876]
[1733237355994,36.74643876,221.53,221.3,34.03693876]
[1733237356202,34.03693876,221.49,221.3,34.03693876]
[1733237356497,2.2584,221.43,221.35,2.2591]
[1733237356700,2.2584,221.43,221.3,34.03693876]
[1733237356701,34.03693876,221.49,221.31,5.62]
[1733237358597,34.03693876,221.45,221.31,5.62]
[1733237358798,34.03693876,221.41,221.27,5.6151]
[1733237359001,2.2596,221.31,221.24,2.2603]
[1733237359200,34.03693876,221.33,221.14,34.03693876]
[1733237359800,34.03693876,221.33,221.13,5.62]
[1733237359801,34.03693876,221.37,221.18,34.03693876]
[1733237359998,34.03693876,221.37,221.13,5.62]
[1733237359999,34.03693876,221.33,221.14,34.03693876]
[1733237360296,34.03693876,221.33,221.24,2.2603]
[1733237360703,2.2601,221.26,221.2,2.2606]
[1733237360897,34.03693876,221.29,221.13,5.62]
[1733237361203,34.03693876,221.25,221.11,8.3767]
[1733237361395,2.2607,221.2,221.14,2.2613]
[1733237361798,34.03693876,221.25,221.11,8.3767]
[1733237362203,34.03693876,221.25,221.11,5.5813]
[1733237362801,34.03693876,221.25,221.15,2.2612]
[1733237363001,34.03693876,221.25,221.11,2.7784]
[1733237363503,2.8259,221.27,221.11,2.7784]
[1733237363696,34.03693876,221.29,221.11,2.7784]
[1733237363898,34.03693876,221.33,221.14,34.03693876]
[1733237364103,34.03693876,221.33,221.11,2.7784]
[1733237364302,34.03693876,221.33,221.19,2.2608]
[1733237364303,2.26,221.27,221.19,2.2608]
[1733237364493,34.03693876,221.33,221.16,5.64]
[1733237364701,34.03693876,221.37,221.19,34.03693876]
[1733237364998,2.8259,221.4,221.19,34.03693876]
[1733237365404,34.03693876,221.34,221.17,5.5159]
[1733237365705,34.03693876,221.3,221.17,5.5159]
[1733237366007,34.03693876,221.3,221.19,2.2608]
[1733237366205,34.03693876,221.3,221.11,2.7784]
[1733237366206,34.03693876,221.26,221.11,2.7784]
[1733237366500,34.03693876,221.26,221.1,5.64]
[1733237366501,34.03693876,221.22,221.1,7.9016]
[1733237366707,34.03693876,221.18,221.05,2.6391]
[1733237367410,34.03693876,221.22,221.05,2.6391]
[1733237367799,34.03693876,221.18,221.06,2.2621]
[1733237368003,34.03693876,221.18,220.9,47.02]
[1733237368004,34.03693876,221.1,220.9,47.02]
[1733237368206,34.03693876,221.1,220.91,13.7481]
[1733237368401,34.03693876,221.06,220.91,8.1081]
[1733237368707,34.03693876,221.06,220.91,2.6489]
[1733237368902,34.03693876,221.06,220.94,2.2633]
[1733237369101,2.21161171,221.05,220.91,2.6489]
[1733237369303,34.03693876,221.06,220.91,2.6489]
[1733237369504,2.5821,221.09,220.92,34.03693876]
[1733237369905,2.2621,221.06,220.96,2.2631]
[1733237370108,2.5821,221.09,220.91,2.6489]
[1733237370608,34.03693876,221.03,220.91,2.6489]
[1733237371010,2.2195289,221.28,220.95,34.03693876]
[1733237371210,34.03693876,221.18,220.96,5.64]
[1733237371407,36.31127278,221.18,220.97,2.7183]
[1733237371711,2.2614,221.13,221.05,2.2621]
[1733237371903,2.2614,221.13,220.98,5.64]
[1733237372206,2.2614,221.13,220.97,2.7183]
[1733237372207,34.03693876,221.06,220.92,2.8415]
[1733237372610,36.29873876,221.1,220.92,2.8415]
[1733237372811,34.03693876,221.1,220.92,2.8415]
[1733237373007,2.8124,221.12,220.92,2.8415]
[1733237373204,2.8124,221.12,221.0,2.2627]
[1733237373512,2.8124,221.12,220.92,2.8415]
[1733237373711,2.2618,221.1,220.98,2.2629]
[1733237373911,34.03693876,221.1,220.92,2.8415]
[1733237374414,34.03693876,221.1,220.98,2.2629]
[1733237374608,34.03693876,221.06,220.92,2.8415]
[1733237374809,34.03693876,221.1,220.92,2.8415]
[1733237375201,34.03693876,221.06,220.92,2.8415]
[1733237375407,34.03693876,221.02,220.88,5.62]
[1733237375909,2.2634,220.94,220.87,59.70669895]
[1733237376106,34.03693876,221.02,220.87,59.70669895]
[1733237376613,34.03693876,221.02,220.9,2.2637]
[1733237376804,34.03693876,221.02,220.87,59.70669895]
[1733237377110,2.27433402,221.18,221.06,2.2621]
[1733237377311,34.03693876,221.22,221.04,5.62]
[1733237377511,36.27340247,221.22,221.04,5.62]
[1733237377711,34.03693876,221.22,221.04,5.62]
[1733237378010,5.2667,221.25,221.05,34.03693876]
[1733237378214,34.03693876,221.22,221.04,5.62]
[1733237378710,34.03693876,221.26,221.04,5.62]
[1733237379013,34.03693876,221.26,221.08,34.03693876]
[1733237379604,34.03693876,221.22,221.04,5.62]
[1733237380405,34.03693876,221.22,221.05,5.62]
[1733237381015,2.261,221.17,221.05,5.62]
[1733237381713,34.03693876,221.18,221.05,5.62]
[1733237382615,36.34028303,221.18,221.05,5.62]
[1733237383113,34.03693876,221.18,221.09,2.2616]
[1733237383317,2.29451747,221.21,221.05,5.62]
[1733237383511,34.03693876,221.22,221.05,5.62]
[1733237384013,2.29836505,221.21,221.05,5.62]
[1733237384215,34.03693876,221.18,221.05,5.62]
[1733237384718,36.34684656,221.18,221.05,5.62]
[1733237384920,36.34684656,221.18,221.02,2.8048]
[1733237384921,34.03693876,221.14,221.02,2.8048]
[1733237385320,34.03693876,221.14,221.01,5.62]
[1733237385321,36.34073569,221.14,221.01,5.62]
[1733237385821,2.30379693,221.14,221.01,39.65693876]
[1733237386220,2.30379693,221.14,221.05,34.03693876]
[1733237386516,39.33633876,221.31,221.09,34.03693876]
[1733237386819,2.6233,221.31,221.13,34.03693876]
[1733237387015,4.53833602,221.29,221.14,5.62]
[1733237387220,2.2596,221.29,221.14,5.62]
[1733237387618,36.66023876,221.31,221.14,5.62]
[1733237387812,36.66023876,221.31,221.1,5.5656]
[1733237387813,34.03693876,221.27,221.1,5.5656]
[1733237388016,34.03693876,221.27,221.18,2.2607]
[1733237388221,34.03693876,221.27,221.1,11.1856]
[1733237388713,2.2603,221.23,221.1,11.1856]
[1733237388914,34.03693876,221.27,221.1,11.1856]
[1733237389116,34.03693876,221.27,221.1,5.5656]
[1733237389316,34.03693876,221.23,221.07,5.62]
[1733237389814,2.2612,221.13,221.02,11.0671]
[1733237390012,34.03693876,221.15,221.02,5.62]
[1733237390216,34.03693876,221.15,221.03,2.2622]
[1733237390519,2.2616,221.09,220.98,5.62]
[1733237390918,34.03693876,221.11,220.98,5.62]
[1733237391122,34.03693876,221.11,221.03,2.2622]
[1733237391316,34.03693876,221.11,220.98,5.62]
[1733237391519,2.3179,221.2,220.98,5.62]
[1733237391520,34.03693876,221.15,220.98,5.62]
[1733237391717,2.3179,221.2,221.0,34.03693876]
[1733237391926,34.03693876,221.25,221.04,34.03693876]
[1733237392124,2.3179,221.3,221.21,2.2604]
[1733237392326,36.66023876,221.31,221.16,5.62]
[1733237392519,36.66023876,221.31,221.17,5.62]
[1733237393323,38.91963876,221.31,221.25,2.2599]
[1733237393522,38.91963876,221.31,221.17,5.62]
[1733237393729,2.31708972,221.34,221.17,5.62]
[1733237393927,2.31708972,221.34,221.2,34.03693876]
[1733237394129,2.31708972,221.34,221.24,34.03693876]
[1733237394325,2.31708972,221.34,221.32,2.2592]
[1733237394528,2.31708972,221.34,221.33,5.62]
[1733237394727,307.66968098,221.45,221.33,5.62]
[1733237394924,34.03693876,221.43,221.33,5.62]
[1733237395229,2.2585,221.4,221.33,7.8791]
[1733237395527,34.03693876,221.43,221.33,5.62]
[1733237395723,307.66968098,221.45,221.33,5.62]
[1733237396321,307.66968098,221.45,221.43,2.2581]
[1733237397023,307.66968098,221.45,221.44,5.62]
[1733237397230,307.66968098,221.51,221.44,5.62]
[1733237397426,307.66968098,221.51,221.5,2.2574]
[1733237397926,5.6432,221.6,221.44,39.65693876]
[1733237399229,5.6432,221.6,221.58,2.2565]
[1733237399529,34.03693876,221.69,221.54,5.62]
[1733237399731,34.03693876,221.73,221.56,34.03693876]
[1733237399930,34.03693876,221.73,221.57,5.62]
[1733237400236,8.0079,221.75,221.57,5.62]
[1733237400433,5.4167,221.75,221.6,34.03693876]
[1733237400730,5.4167,221.75,221.57,5.62]
[1733237401034,34.03693876,221.73,221.58,5.62]
[1733237401932,34.03693876,221.73,221.64,2.2559]
[1733237402529,34.03693876,221.69,221.46,5.4014]
[1733237402732,34.03693876,221.69,221.45,59.55661424]
[1733237402733,34.03693876,221.61,221.47,5.62]
[1733237402931,5.3973,221.6,221.45,59.55661424]
[1733237403234,5.3973,221.6,221.47,5.62]
[1733237403537,36.88623876,221.69,221.47,5.62]
[1733237403835,2.7567,221.65,221.47,5.62]
[1733237404533,34.03693876,221.61,221.45,59.55661424]
[1733237404735,34.03693876,221.57,221.45,59.55661424]
[1733237405235,34.03693876,221.57,221.42,5.62]
[1733237405638,34.03693876,221.61,221.42,5.62]
[1733237405835,2.2567,221.58,221.42,5.62]
[1733237406132,2.2567,221.58,221.37,47.0]
[1733237406133,34.03693876,221.53,221.37,47.0]
[1733237406334,34.03693876,221.49,221.37,47.0]
[1733237406830,34.03693876,221.45,221.26,34.03693876]
[1733237407032,34.03693876,221.41,221.21,34.03693876]
[1733237407236,2.2584,221.41,221.32,2.2592]
[1733237407426,34.03693876,221.45,221.25,34.03693876]
[1733237407832,2.6035,221.51,221.33,34.03693876]
[1733237408027,5.3905,221.52,221.37,34.03693876]
[1733237408229,5.3905,221.52,221.34,5.58]
[1733237408230,34.03693876,221.58,221.5,2.2574]
[1733237408432,34.03693876,221.58,221.45,5.58]
[1733237408634,34.03693876,221.58,221.41,5.58]
[1733237408937,34.03693876,221.5,221.33,2.6373]
[1733237409130,34.03693876,221.54,221.36,5.58]
[1733237409337,34.03693876,221.58,221.41,34.03693876]
[1733237409535,34.03693876,221.58,221.37,34.03693876]
[1733237409936,8.3923,221.91,221.38,46.98]
[1733237410137,8.01705326,222.27,221.53,11.2857]
[1733237410333,306.17528,222.44,222.25,34.03693876]
[1733237410542,367.42531624,222.62,222.43,34.03693876]
[1733237410738,377.44551718,222.99,222.55,34.03693876]
[1733237410739,13.57,222.98,222.55,34.03693876]
[1733237410930,13.56,223.19,222.68,34.03693876]
[1733237411241,8.9514,223.45,222.78,34.03693876]
[1733237411242,46.98,223.18,222.78,34.03693876]
[1733237411545,1.0,223.18,222.84,34.03693876]
[1733237411933,1.0,223.18,222.75,34.03693876]
[1733237411934,2.6879,223.36,222.94,34.03693876]
[1733237412136,34.03693876,223.23,222.69,46.98]
[1733237412339,2.6879,223.36,222.94,34.03693876]
[1733237412635,34.03693876,223.27,222.89,46.88]
[1733237412837,34.03693876,223.3,223.01,34.03693876]
[1733237413036,2.2394,223.29,223.01,34.03693876]
[1733237413241,34.03693876,223.32,223.06,34.03693876]
[1733237413439,34.03693876,223.32,223.01,34.03693876]
[1733237414142,34.03693876,223.27,222.97,34.03693876]
[1733237414444,34.03693876,223.27,223.0,78.95357451]
[1733237414736,2.2398,223.25,223.09,2.2413]
[1733237415040,34.03693876,223.29,223.02,1.0]
[1733237415342,34.03693876,223.3,223.07,34.03693876]
[1733237415541,2.6879,223.36,223.12,34.03693876]
[1733237415741,2.6879,223.36,223.28,2.2394]
[1733237415936,2.6879,223.36,223.18,34.03693876]
[1733237416339,2.6879,223.36,223.35,2.2388]
[1733237416544,34.03693876,223.5,223.23,34.03693876]
[1733237416744,33.69538657,223.53,223.28,34.03693876]
[1733237416939,2.2362,223.61,223.47,2.2375]
[1733237417237,4.4688,223.8,223.19,1.0]
[1733237417443,2.2362,223.61,223.33,2.2389]
[1733237417639,46.8,223.79,223.35,33.69538657]
[1733237417846,33.69538657,223.62,223.4,33.69538657]
[1733237418136,4.4628,224.1,223.34,1.0]
[1733237418137,46.8,224.36,223.56,33.69538657]
[1733237418341,44.47563983,223.82,223.59,33.69538657]
[1733237418842,33.69538657,223.77,223.42,4.4761]
[1733237419143,33.69538657,223.56,223.41,1.0]
[1733237419542,10.78025326,223.82,223.39,33.69538657]
[1733237419741,10.78025326,223.82,223.3,33.69538657]
[1733237419742,10.78025326,223.82,223.49,33.69538657]
[1733237419937,33.69538657,223.8,223.54,33.69538657]
[1733237420144,46.72,224.07,223.65,33.69538657]
[1733237420444,46.72,224.07,223.65,58.97844669]
[1733237420445,33.69538657,223.81,223.65,58.97844669]
[1733237420743,46.72,224.0,223.52,33.69538657]
[1733237420947,33.69538657,223.94,223.7,33.69538657]
[1733237421246,33.69538657,223.94,223.63,33.69538657]
[1733237421247,33.69538657,223.96,223.63,33.69538657]
[1733237421448,33.69538657,223.91,223.63,33.69538657]
[1733237421639,33.69538657,223.78,223.41,33.69538657]
[1733237421839,33.69538657,223.68,223.25,46.66]
[1733237422039,33.69538657,223.73,223.45,33.69538657]
[1733237422244,33.69538657,223.73,223.25,46.66]
[1733237422245,5.312,224.17,223.55,33.69538657]
[1733237422443,33.69538657,223.82,223.55,33.69538657]
[1733237422640,80.35538657,223.96,223.46,1.0]
[1733237422641,33.69538657,223.77,223.46,1.0]
[1733237422842,33.69538657,223.85,223.54,33.69538657]
[1733237423147,33.69538657,223.89,223.64,33.69538657]
[1733237423742,13.57,224.16,223.56,33.69538657]
[1733237423937,33.69538657,223.88,223.61,33.69538657]
[1733237424141,33.69538657,223.93,223.71,33.69538657]
[1733237424343,2.2332,223.92,223.77,2.2346]
[1733237424543,2.2332,223.92,223.71,33.69538657]
[1733237424740,33.69538657,223.85,223.66,33.69538657]
[1733237424940,33.69538657,223.74,223.52,33.69538657]
[1733237425355,2.2341,223.83,223.67,2.2356]
[1733237425542,33.69538657,223.85,223.62,33.69538657]
[1733237425741,33.69538657,223.8,223.52,33.69538657]
[1733237425945,33.69538657,223.7,223.3,33.69538657]
[1733237426144,33.69538657,223.65,223.42,33.69538657]
[1733237426346,33.69538657,223.61,223.42,33.69538657]
[1733237426549,33.69538657,223.61,223.3,33.69538657]
[1733237426550,33.69538657,223.61,223.19,33.69538657]
[1733237426754,33.69538657,223.74,223.39,2.2384]
[1733237426755,33.69538657,223.56,223.39,2.2384]
[1733237426955,80.31538657,223.6,223.38,33.69538657]
[1733237427156,2.2366,223.58,223.42,2.238]
[1733237427355,46.62,223.6,223.42,33.69538657]
[1733237427658,2.7694,223.73,223.5,33.69538657]
[1733237428048,33.69538657,223.7,223.46,33.69538657]
[1733237428454,2.7694,223.73,223.46,33.69538657]
[1733237428663,2.2365,223.59,223.42,33.69538657]
[1733237428955,2.7694,223.73,223.5,33.69538657]
[1733237429152,2.2356,223.67,223.5,33.69538657]
[1733237429353,33.69538657,223.7,223.46,33.69538657]
[1733237429653,2.7694,223.73,223.54,33.69538657]
[1733237429852,2.7694,223.73,223.5,33.69538657]
[1733237430057,33.69538657,223.66,223.43,33.69538657]
[1733237430252,2.2365,223.59,223.43,33.69538657]
[1733237430460,33.69538657,223.58,223.35,92.75110067]
[1733237430862,2.2367,223.57,223.39,33.69538657]
[1733237431164,33.69538657,223.5,223.35,59.0557141]
[1733237431359,2.238,223.44,223.35,59.0557141]
[1733237431962,33.69538657,223.46,223.35,1e-08]
[1733237432168,33.69538657,223.42,223.35,1e-08]
[1733237432366,33.69538657,223.46,223.25,33.69538657]
[1733237432576,2.238,223.43,223.27,2.2395]
[1733237432768,33.69538657,223.5,223.25,33.69538657]
[1733237432962,33.69538657,223.43,223.19,33.69538657]
[1733237433260,33.69538657,223.35,223.15,33.69538657]
[1733237433465,33.69538657,223.39,223.15,33.69538657]
[1733237434068,33.69538657,223.32,223.11,33.69538657]
[1733237434362,33.69538657,223.39,223.15,33.69538657]
[1733237434363,1.0,223.38,223.15,33.69538657]
[1733237434562,33.69538657,223.35,223.15,33.69538657]
[1733237434760,33.69538657,223.35,223.09,59.12451777]
[1733237434761,1.0,223.38,223.19,33.69538657]
[1733237434962,33.69538657,223.43,223.19,33.69538657]
[1733237435158,80.27538657,223.5,223.05,2.2417]
[1733237435159,2.2401,223.22,223.05,2.2417]
[1733237435361,33.69538657,223.35,223.16,33.69538657]
[1733237435562,33.69538657,223.39,223.16,33.69538657]
[1733237435868,2.2394,223.29,223.12,33.69538657]
[1733237436063,33.69538657,223.31,223.12,33.69538657]
[1733237436260,33.69538657,223.31,223.08,33.69538657]
[1733237436668,33.69538657,223.31,223.12,33.69538657]
[1733237436866,2.2394,223.29,223.13,2.2409]
[1733237437267,1.0,223.38,223.16,33.69538657]
[1733237437467,2.239,223.33,223.16,35.93598657]
[1733237437765,33.69538657,223.33,223.12,33.69538657]
[1733237437970,2.2396,223.27,223.12,33.69538657]
[1733237438268,33.69538657,223.33,223.12,33.69538657]
[1733237438673,46.6,223.45,223.08,33.69538657]
[1733237438972,33.69538657,223.29,223.09,33.69538657]
[1733237439268,2.2398,223.25,223.1,2.2412]
[1733237439468,33.69538657,223.29,223.09,33.69538657]
[1733237439770,33.69538657,223.41,223.04,2.2418]
[1733237439771,2.2404,223.19,223.04,2.2418]
[1733237439968,33.69538657,223.3,223.09,33.69538657]
[1733237440169,118.0,223.26,223.13,33.69538657]
[1733237440477,118.0,223.26,223.09,33.69538657]
[1733237440973,118.0,223.26,223.13,33.69538657]
[1733237441170,118.0,223.26,223.09,33.69538657]
[1733237441665,118.0,223.26,223.05,33.69538657]
[1733237441867,151.69538657,223.26,223.05,33.69538657]
[1733237442068,118.0,223.26,223.05,33.69538657]
[1733237442468,33.69538657,223.26,223.01,33.69538657]
[1733237442675,33.69538657,223.26,223.01,35.93748657]
[1733237442676,2.2406,223.17,223.01,35.93748657]
[1733237442870,33.69538657,223.18,223.01,2.2421]
[1733237443067,33.69538657,223.18,222.97,33.69538657]
[1733237443365,33.69538657,223.14,222.93,33.69538657]
[1733237443563,118.0,223.23,222.93,33.69538657]
[1733237443762,46.6,223.25,222.98,2.2424]
[1733237443763,2.2411,223.12,222.98,2.2424]
[1733237443963,33.69538657,223.13,222.93,33.69538657]
[1733237444274,2.2404,223.19,223.05,2.2417]
[1733237444464,33.69538657,223.19,222.97,33.69538657]
[1733237444664,33.69538657,223.15,222.93,33.69538657]
[1733237444869,33.69538657,223.11,222.93,33.69538657]
[1733237445068,33.69538657,223.19,222.85,33.69538657]
[1733237445069,33.69538657,223.07,222.85,33.69538657]
[1733237445372,33.69538657,223.03,222.85,33.69538657]
[1733237446167,33.69538657,223.08,222.85,33.69538657]
[1733237446370,2.242,223.03,222.85,33.69538657]
[1733237446580,33.69538657,223.08,222.85,33.69538657]
[1733237446867,33.69538657,223.01,222.81,33.69538657]
[1733237447073,46.6,223.14,222.78,59.15941085]
[1733237447074,33.69538657,223.05,222.85,33.69538657]
[1733237447572,33.69538657,223.01,222.81,33.69538657]
[1733237448474,33.69538657,223.04,222.81,33.69538657]
[1733237448671,33.69538657,223.0,222.78,59.15941085]
[1733237449068,2.2424,222.99,222.86,2.2436]
[1733237449269,33.69538657,223.04,222.78,59.15941085]
[1733237449772,33.69538657,223.0,222.78,59.15941085]
[1733237450168,33.69538657,223.04,222.84,33.69538657]
[1733237450968,33.69538657,223.08,222.88,33.69538657]
[1733237451169,2.2418,223.06,222.95,2.2428]
[1733237451376,33.69538657,223.04,222.84,33.69538657]
[1733237451568,33.69538657,223.04,222.77,33.69538657]
[1733237451765,33.69538657,223.04,222.86,2.2437]
[1733237451766,2.2425,222.98,222.86,2.2437]
[1733237451971,33.69538657,223.04,222.86,2.2437]
[1733237452171,33.69538657,223.04,222.81,33.69538657]
[1733237452671,33.69538657,222.96,222.77,33.69538657]
[1733237452971,118.0,223.18,222.95,33.69538657]
[1733237453178,118.0,223.18,222.99,33.69538657]
[1733237453375,33.69538657,223.13,222.9,33.69538657]
[1733237453870,33.69538657,223.13,222.92,2.2431]
[1733237454071,33.69538657,223.13,222.93,1.12156863]
[1733237454273,33.69538657,223.13,222.9,33.69538657]
[1733237454476,2.2416,223.07,222.96,2.2427]
[1733237454672,33.69538657,223.13,222.94,33.69538657]
[1733237455076,33.69538657,223.13,222.95,2.91615051]
[1733237455278,33.69538657,223.13,222.96,1.12175362]